fUST/lending_fUST_20240122
["ID","MTS","AMOUNT","RATE_DAILY","PERIOD"]
[312472352,1705913850678,-1337.29,0.00044383,31]
[312472353,1705913850702,-1126.09,0.00044383,31]
[312472354,1705913850725,-500.0,0.00044383,31]
[312472355,1705913850749,-1014.23,0.00044383,31]
[312472356,1705913850777,-2330.07,0.00044383,31]
[312472357,1705913850802,-6634.5,0.00044383,31]
[312472358,1705913850826,-949.36,0.00044383,31]
[312472359,1705913850851,-1340.33,0.00044383,31]
[312472360,1705913850876,-553.4430967,0.00044383,31]
[312472361,1705913850900,-2749.12,0.00044383,31]
[312472362,1705913850925,-1551.82,0.00044383,31]
[312472363,1705913850949,-5781.2,0.00044383,31]
[312472364,1705913850973,-2019.03,0.00044383,31]
[312472365,1705913850997,-6915.52,0.00044383,31]
[312472366,1705913851022,-2081.27,0.00044383,31]
[312472367,1705913851046,-539.18,0.00044383,31]
[312472368,1705913851070,-1825.15,0.00044383,31]
[312472369,1705913851094,-741.59,0.00044383,31]
[312472370,1705913851118,-1295.04,0.00044383,31]
[312472371,1705913851142,-1269.8,0.00044383,31]
[312472372,1705913851167,-1732.72,0.00044383,31]
[312472373,1705913851190,-1393.86,0.00044383,31]
[312472374,1705913851214,-1409.98,0.00044383,31]
[312472375,1705913851237,-571.3,0.00044383,31]
[312472376,1705913851260,-567.11,0.00044383,31]
[312472377,1705913851285,-638.47,0.00044383,31]
[312472378,1705913851310,-2018.02,0.00044383,31]
[312472379,1705913851334,-2040.77,0.00044383,31]
[312472380,1705913851358,-4772.99,0.00044383,31]
[312472381,1705913851382,-1774.13,0.00044383,31]
[312472382,1705913851405,-8847.76827085,0.00044383,31]
[312472383,1705913853552,-5463.02172915,0.00044383,31]
[312472384,1705913853576,-604.97,0.00044383,31]
[312472385,1705913853601,-500.0,0.00044657,31]
[312472386,1705913853626,-1114.81,0.00044657,31]
[312472387,1705913853651,-768.35,0.00044657,31]
[312472388,1705913853675,-873.08,0.00044657,31]
[312472389,1705913853699,-640.07,0.00044657,31]
[312472390,1705913853723,-529.18,0.00044657,31]
[312472391,1705913853748,-1047.38,0.00044657,31]
[312472392,1705913853772,-640.2347969,0.00044657,31]
[312472393,1705913853798,-564.89,0.00044657,31]
[312472394,1705913853822,-1337.29,0.00044657,31]
[312472395,1705913853848,-1126.09,0.00044657,31]
[312472396,1705913853872,-500.0,0.00044657,31]
[312472397,1705913853897,-1014.23,0.00044657,31]
[312472398,1705913853920,-2330.07,0.00044657,31]
[312472399,1705913853944,-949.36,0.00044657,31]
[312472400,1705913853969,-1340.33,0.00044657,31]
[312472401,1705913853992,-2749.12,0.00044657,31]
[312472402,1705913854017,-1551.82,0.00044657,31]
[312472403,1705913854042,-5781.2,0.00044657,31]
[312472404,1705913854066,-6915.52,0.00044657,31]
[312472405,1705913854090,-2081.27,0.00044657,31]
[312472406,1705913854114,-539.18,0.00044657,31]
[312472407,1705913854139,-1825.15,0.00044657,31]
[312472408,1705913854163,-741.59,0.00044657,31]
[312472409,1705913854268,-1295.04,0.00044657,31]
[312472410,1705913854294,-1269.8,0.00044657,31]
[312472411,1705913854319,-1732.72,0.00044657,31]
[312472412,1705913854344,-1393.86,0.00044657,31]
[312472413,1705913854369,-1409.98,0.00044657,31]
[312472414,1705913854393,-571.3,0.00044657,31]
[312472415,1705913854419,-567.11,0.00044657,31]
[312472416,1705913854445,-638.47,0.00044657,31]
[312472417,1705913854471,-2018.02,0.00044657,31]
[312472418,1705913854497,-2040.77,0.00044657,31]
[312472419,1705913854526,-4772.99,0.00044657,31]
[312472420,1705913854552,-1774.13,0.00044657,31]
[312472421,1705913854577,-604.97,0.00044657,31]
[312472422,1705913854603,-14310.79,0.00044657,31]
[312472423,1705913854628,-437.4661791,0.00044931,31]
[312472424,1705913854653,-1115.04241026,0.00044931,31]
[312472425,1705913854678,-768.5459079,0.00044931,31]
[312472426,1705913854702,-873.18172778,0.00044931,31]
[312472427,1705913854727,-640.19337823,0.00044931,31]
[312472428,1705913854753,-529.27504985,0.00044931,31]
[312472429,1705913854783,-1047.45948407,0.00044931,31]
[312472430,1705913854808,-564.98515695,0.00044931,31]
[312472431,1705913854834,-1337.33792233,0.00044931,31]
[312472432,1705913854859,-1126.1499045,0.00044931,31]
[312472433,1705913854883,-365.03785732,0.00044931,31]
[312472434,1705913854907,-1014.23902778,0.00044931,31]
[312472435,1705913854930,-2330.22725561,0.00044931,31]
[312472436,1705913854955,-949.56383507,0.00044931,31]
[312472437,1705913854980,-1340.5168416,0.00044931,31]
[312472438,1705913855004,-2749.25,0.00044931,31]
[312472439,1705913855029,-1552.00877283,0.00044931,31]
[312472440,1705913855055,-5781.22141835,0.00044931,31]
[312472441,1705913855081,-6915.52866753,0.00044931,31]
[312472442,1705913855106,-2081.50961805,0.00044931,31]
[312472443,1705913855132,-539.31773916,0.00044931,31]
[312472444,1705913855157,-1825.37682666,0.00044931,31]
[312472445,1705913855184,-741.59409892,0.00044931,31]
[312472446,1705913855210,-1295.16165758,0.00044931,31]
[312472447,1705913855237,-1269.93914948,0.00044931,31]
[312472448,1705913855263,-1732.7345628,0.00044931,31]
[312472449,1705913855290,-1393.92843584,0.00044931,31]
[312472450,1705913855315,-1410.1499593,0.00044931,31]
[312472451,1705913855340,-571.48638047,0.00044931,31]
[312472452,1705913855364,-567.16665867,0.00044931,31]
[312472453,1705913855390,-638.5999055,0.00044931,31]
[312472454,1705913855417,-2018.0747362,0.00044931,31]
[312472455,1705913855443,-2040.8142058,0.00044931,31]
[312472456,1705913855470,-4773.08823018,0.00044931,31]
[312472457,1705913855495,-1774.36751767,0.00044931,31]
[312472458,1705913855520,-605.03318045,0.00044931,31]
[312472459,1705913855545,-14310.82565787,0.00044931,31]
[312472460,1705913855569,-1064.14604948,0.0004496,30]
[312472461,1705913855593,-150.5,0.0004497,30]
[312472462,1705913855617,-150.5,0.0004497,30]
[312472463,1705913855642,-150.5,0.0004497,30]
[312472464,1705913855666,-249.0,0.0004497,30]
[312472465,1705913855691,-249.0,0.0004497,30]
[312472466,1705913855715,-283.24,0.0004498,30]
[312472467,1705913855740,-150.5,0.0004498,30]
[312472468,1705913855768,-150.5,0.0004498,30]
[312472469,1705913855794,-150.5,0.0004498,30]
[312472470,1705913855820,-249.0,0.0004498,30]
[312472471,1705913855868,-249.0,0.0004498,30]
[312472472,1705913855901,-249.0,0.0004498,30]
[312472473,1705913855926,-258.44,0.0004498,30]
[312472474,1705913855949,-557.94053538,0.0004498,30]
[312472475,1705913856060,-1064.14604948,0.00044981,30]
[312472476,1705913856087,-1064.14604948,0.00044984,30]
[312472477,1705913856111,-150.5,0.0004499,30]
[312472478,1705913856135,-150.5,0.0004499,30]
[312472479,1705913856159,-150.5,0.0004499,30]
[312472480,1705913856182,-150.5,0.0004499,30]
[312472481,1705913856207,-158.52,0.0004499,30]
[312472482,1705913856231,-289.8,0.0004499,30]
[312472483,1705913856257,-247.02,0.0004499,30]
[312472484,1705913856283,-249.0,0.0004499,30]
[312472485,1705913856308,-249.0,0.0004499,30]
[312472486,1705913856334,-249.0,0.0004499,30]
[312472487,1705913856359,-249.0,0.0004499,30]
[312472488,1705913856384,-1064.14604948,0.00044992,30]
[312472489,1705913856408,-551.0,0.00044999,120]
[312472490,1705913856435,-804.06141517,0.00045,30]
[312472491,1705913856460,-202.39191854,0.00045,120]
[312472492,1705913856485,-1003.41229787,0.00045,120]
[312472493,1705913856511,-366.0,0.00045,120]
[312472494,1705913856535,-1000.0,0.00045,45]
[312472495,1705913856558,-643.36751128,0.00045,120]
[312472496,1705913856583,-453.05757211,0.00045,120]
[312472497,1705913856607,-500.0,0.00045,120]
[312472498,1705913856632,-262.0490924,0.00045,120]
[312472499,1705913856656,-500.0,0.00045,120]
[312472500,1705913856679,-617.33771013,0.00045,120]
[312472501,1705913856704,-258.86193509,0.00045,120]
[312472502,1705913856729,-328.63595899,0.00045,120]
[312472503,1705913856753,-500.0,0.00045,120]
[312472504,1705913856781,-500.0,0.00045,120]
[312472505,1705913856805,-492.09035284,0.00045,120]
[312472506,1705913856828,-535.16007012,0.00045,120]
[312472507,1705913856854,-2000.0,0.00045005,30]
[312472508,1705913856879,-71049.49434531,0.000455,120]
[312472509,1705913856903,-258680.97924314,0.000455,120]
[312472510,1705913866482,-278.84066847,0.00039,30]
[312472511,1705913866520,-499721.15933153,0.000455,120]
[312472512,1705913888628,-154.81422293,0.00039452,30]
[312472513,1705913888665,-241597.86142533,0.000455,120]
[312472514,1705913888691,-258247.32435174,0.000455,120]
[312472515,1705913892174,-500000.0,0.000455,120]
[312472516,1705913897393,-5543.47422609,0.00042,120]
[312472517,1705913897424,-431.4803392,0.00045,30]
[312472518,1705913897448,-241752.67564826,0.000455,120]
[312472519,1705913897472,-252272.36978645,0.000455,120]
[312472967,1705914279071,150.0,0.00029,30]
[312473215,1705914638533,-154.82968734,0.00021624,4]
[312473216,1705914638543,-177.94716191,0.00021625,2]
[312473217,1705914638552,-250.0,0.00021628,2]
[312473218,1705914638561,-170.79827,0.00021818,2]
[312473219,1705914638570,-21686.1459775,0.00022114,2]
[312473221,1705914638579,-24900.0,0.00022115,2]
[312473222,1705914638589,-679.95,0.0002309,3]
[312473223,1705914638598,-154.93802479,0.000231,2]
[312473225,1705914638607,-113334.71471829,0.000231,2]
[312473227,1705914638616,-170.417245,0.00023182,2]
[312473229,1705914638625,-155.0,0.000278,2]
[312473231,1705914638634,-154.82968734,0.00027897,2]
[312473232,1705914638643,-309.42756595,0.00027898,2]
[312473234,1705914638652,-24392.71190768,0.000279,2]
[312473236,1705914638662,-290.32272867,0.00028,2]
[312473238,1705914638671,-6545.18087169,0.00028,2]
[312473240,1705914638681,-3991.16189284,0.00028475,5]
[312473242,1705914638691,-874.00169221,0.00028475,2]
[312473244,1705914638700,-290.75691903,0.00028767,3]
[312473246,1705914638712,-206.383548,0.00028767,2]
[312473248,1705914638721,-114091.30629578,0.000288,2]
[312477830,1705914711290,154.82968734,0.00027862,120]
[312477831,1705914729007,154.82968734,0.00027862,120]
[312477832,1705914747011,154.82968734,0.00027862,120]
[312477833,1705914765055,154.82968734,0.00027862,120]
[312477834,1705914783019,197.95539427,0.00027861,120]
[312477908,1705915833843,-561.64006482,0.00023165,2]
[312477910,1705915833852,-467.14821282,0.00023166,2]
[312477911,1705915833863,-972.04203734,0.00023166,2]
[312477912,1705915833872,-175.22193864,0.00023167,2]
[312477914,1705915833881,-1468.66343637,0.00023167,2]
[312477916,1705915833890,-876.39189184,0.00023167,2]
[312477917,1705915833899,-272.55691777,0.00023168,2]
[312477918,1705915833909,-261.13863683,0.00023169,2]
[312477920,1705915833918,-2844.8069235,0.00023169,2]
[312477937,1705915838784,-678.6288756,0.00023165,2]
[312477938,1705915838794,-3420.49198831,0.00023169,2]
[312477939,1705915838840,-15420.84706569,0.00023169,2]
[312477940,1705915838849,-161.02224773,0.00023169,2]
[312477941,1705915838858,-24900.0,0.0002317,2]
[312477942,1705915838867,-4014.03339386,0.00024,2]
[312477943,1705915838877,-163.12898653,0.00024099,2]
[312477944,1705915838886,-850.30063575,0.00024099,2]
[312477945,1705915838895,-3485.76836938,0.000241,2]
[312477946,1705915838905,-595.13721922,0.00024101,2]
[312477947,1705915838915,-163.4202506,0.00024104,2]
[312477948,1705915838924,-263.21986175,0.000242,7]
[312477949,1705915838933,-555.36580163,0.000242,2]
[312477950,1705915838943,-327.38324213,0.000242,2]
[312477951,1705915838952,-470.52459336,0.000242,2]
[312477952,1705915838961,-977.99536434,0.00024204,2]
[312477953,1705915838970,-250.0,0.00024245,2]
[312477954,1705915838980,-824.33300328,0.000247,2]
[312477955,1705915838989,-1172.2680572,0.000267,2]
[312477956,1705915838998,-305.34724016,0.00026759,2]
[312477957,1705915839007,-286.95267366,0.00026759,2]
[312477958,1705915839018,-605.99892036,0.00026867,2]
[312477959,1705915839027,-2234.87,0.00026882,3]
[312477960,1705915839037,-243.13309117,0.00026892,2]
[312477961,1705915839046,-170.92363548,0.00026892,2]
[312477962,1705915839056,-1741.02914519,0.00026892,2]
[312477963,1705915839065,-526.75292248,0.00026892,2]
[312477964,1705915839075,-154.86062544,0.00026892,2]
[312477965,1705915839084,-229.95519864,0.00026892,2]
[312477966,1705915839093,-2836.67729407,0.00026892,2]
[312477967,1705915839102,-154.86062544,0.00026892,2]
[312477968,1705915839112,-3032.29062989,0.00026893,2]
[312477969,1705915839121,-15220.19994985,0.00026893,2]
[312477970,1705915839130,-158.22796835,0.00026893,2]
[312477971,1705915839140,-903.63325516,0.00026893,2]
[312477972,1705915839150,-1194.16666959,0.00026893,2]
[312477973,1705915839159,-329.53567279,0.00026893,2]
[312477974,1705915839169,-199.25222227,0.00026894,2]
[312477975,1705915839179,-262.3367316,0.00026894,2]
[312477976,1705915839188,-7960.18375069,0.00026894,2]
[312477977,1705915839197,-5269.78874867,0.00026894,2]
[312477978,1705915839207,-687.96014716,0.00026894,2]
[312477979,1705915839217,-425.80364021,0.00026894,2]
[312477980,1705915839226,-2439.81609647,0.00026894,2]
[312477981,1705915839235,-1266.7890629,0.00026894,2]
[312477982,1705915839245,-309.65937468,0.00026894,2]
[312477983,1705915839255,-178.91876323,0.00026894,2]
[312477984,1705915839265,-1462.3439755,0.00026894,2]
[312477985,1705915839276,-294.88989743,0.00026894,2]
[312477986,1705915839285,-323.52155902,0.00026894,2]
[312477987,1705915839295,-1570.28017035,0.00026894,2]
[312477988,1705915839305,-522.11697668,0.00026894,2]
[312477989,1705915839314,-316.21756321,0.00026894,2]
[312477990,1705915839324,-156.02710907,0.00026894,2]
[312477991,1705915839333,-290.99918412,0.00026894,2]
[312477992,1705915839343,-587.4419017,0.00026894,2]
[312477993,1705915839352,-2034.57165769,0.00026894,2]
[312477994,1705915839361,-151.48485454,0.00027722,2]
[312477995,1705915839371,-246.83533681,0.000278,2]
[312477996,1705915839381,-261.58936724,0.00027861,2]
[312477997,1705915839391,-154.82968734,0.00027861,7]
[312477998,1705915839401,-763.99864371,0.00027861,2]
[312477999,1705915839412,-547.94303379,0.00027861,2]
[312478000,1705915839421,-300.0,0.00027861,2]
[312478001,1705915839430,-364.01300421,0.00027861,5]
[312478002,1705915839440,-182.90507862,0.00027861,2]
[312478003,1705915839451,-535.04170787,0.00027861,2]
[312478004,1705915839460,-157.42490565,0.00027861,2]
[312478005,1705915839469,-164.98581571,0.00027861,2]
[312478006,1705915839481,-155.02455539,0.00027861,2]
[312478007,1705915839490,-608.13565426,0.00027861,2]
[312478008,1705915839502,-1109.51816487,0.00027861,2]
[312478009,1705915839511,-309.50479234,0.00027861,2]
[312478010,1705915839524,-1826.00758456,0.00027861,2]
[312478011,1705915839533,-31359.50152617,0.00027861,7]
[312478120,1705915841777,-154.82968734,0.00023164,4]
[312478123,1705915841786,-345.70196953,0.00027861,7]
[312478325,1705915843839,-355.25,0.00027861,7]
[312478328,1705915843850,-7239.98319429,0.00027861,7]
[312479617,1705916515344,-177.709093,0.00032877,41]
[312479618,1705916515362,-177.709093,0.00032877,80]
[312479619,1705916515382,-111.454535,0.00032877,119]
[312479620,1705916515438,-1000.0,0.00031,31]
[312479621,1705916515459,-1000.0,0.00031,31]
[312479622,1705916515513,-1000.0,0.0003,30]
[312479623,1705916515606,-1000.0,0.00032,32]
[312479783,1705917041084,-533.094253,0.00022821,2]
[312480069,1705917710093,200.0,0.00022354,7]
[312480104,1705917981272,-2977.5109836,0.00019007,2]
[312480105,1705917981306,-154.82968734,0.00019848,3]
[312480106,1705917981343,-154.82968734,0.00019849,2]
[312480107,1705917981375,-2002.20651061,0.00019851,2]
[312480108,1705917981411,-245.1085969,0.00019853,2]
[312480109,1705917981444,-32419.9722053,0.00019853,2]
[312480110,1705917981478,-717.806436,0.00019853,2]
[312480111,1705917981508,-678.6288756,0.0002,2]
[312480112,1705917981541,-850.30063575,0.0002,2]
[312480113,1705917981575,-323.13003236,0.0002,2]
[312480114,1705917982588,21686.1459775,0.0001985,2]
[312480115,1705918010540,200.0,0.00022355,7]
[312480116,1705918011292,977.70118808,0.0001829,2]
[312480117,1705918011795,-192.7477217,0.00020323,2]
[312480118,1705918011821,-2306.78265,0.00020324,2]
[312480665,1705918243482,-154.82968734,0.00020323,4]
[312480666,1705918243491,-108.71035575,0.00020324,2]
[312480698,1705918243781,-191.28964425,0.00020324,2]
[312480700,1705918243790,-2084.29033128,0.00020324,2]
[312480702,1705918243799,-5872.66206564,0.00020324,2]
[312480705,1705918243812,-360.12577253,0.00020324,2]
[312480709,1705918243840,-750.59000031,0.00020324,2]
[312480711,1705918243849,-547.94303379,0.00020324,2]
[312480713,1705918243858,-136.6669659,0.00020324,2]
[312480715,1705918243868,-18.16272144,0.00020324,2]
[312480717,1705918243877,-1563.00910109,0.00020721,2]
[312480719,1705918243885,-63.59810962,0.00021363,2]
[312480721,1705918243896,-1553.6790729,0.00021363,2]
[312480723,1705918243905,-678.6288756,0.00021631,2]
[312480725,1705918243913,-170.79827,0.00021632,2]
[312480727,1705918243922,-96.92529833,0.00021918,2]
[312480979,1705918246107,-69.74136767,0.00021918,2]
[312480981,1705918246116,-620.47380229,0.00022354,2]
[312480983,1705918246125,-513.60865242,0.00022821,2]
[312480985,1705918246136,-132.10096262,0.00022969,2]
[312480987,1705918246148,-773.122,0.00022969,2]
[312480991,1705918246173,-20.9889789,0.00022969,2]
[312480993,1705918246181,-327.38324213,0.00022969,2]
[312480995,1705918246190,-425.80364021,0.0002297,2]
[312480997,1705918246198,-387.61962773,0.00023919,2]
[312480999,1705918246211,-5939.52996439,0.00023919,2]
[312481001,1705918246219,-4014.03339386,0.00024,2]
[312481003,1705918246228,-24900.0,0.00024391,2]
[312481005,1705918246237,-280.0,0.00024591,7]
[312481007,1705918246246,-170.79827,0.00024692,2]
[312481009,1705918246255,-1114.14548175,0.00025108,2]
[312481011,1705918246263,-1563.00910109,0.00025721,2]
[312481013,1705918246272,-391.0,0.0002705,15]
[312481015,1705918246281,-155.0,0.00027397,2]
[312481017,1705918246290,-500.0,0.00027397,2]
[312481019,1705918246298,-684.56779977,0.00027397,2]
[312481021,1705918246307,-500.0,0.00027534,2]
[312481023,1705918246317,-7528.70838659,0.00027619,2]
[312481025,1705918246326,-591.63751077,0.00027671,2]
[312481027,1705918246335,-153.0,0.00027671,2]
[312481029,1705918246343,-199.0990555,0.00027671,2]
[312481031,1705918246352,-1293.33,0.00027849,3]
[312481033,1705918246361,-1551.99,0.0002785,3]
[312481035,1705918246369,-1862.39,0.00027851,3]
[312481037,1705918246378,-271.88151233,0.00027859,2]
[312481039,1705918246387,-1439.19025016,0.00027859,2]
[312481041,1705918246395,-163.12898653,0.00027859,2]
[312481043,1705918246404,-876.39189184,0.0002786,2]
[312481045,1705918246413,-175.22193864,0.0002786,2]
[312481047,1705918246421,-261.13863683,0.0002786,2]
[312481049,1705918246430,-561.64006482,0.0002786,2]
[312481051,1705918246439,-1824.27433548,0.00027861,2]
[312481053,1705918246448,-591.96447368,0.00027899,2]
[312481055,1705918246457,-5141.02050044,0.000279,2]
[312484847,1705919433654,-154.82968734,0.00020324,2]
[312484848,1705919433663,-154.82968734,0.00025748,4]
[312484849,1705919433673,-3485.76836938,0.00025748,2]
[312484850,1705919433682,-587.477086,0.0002576,2]
[312484851,1705919433691,-101.81974096,0.0002654,2]
[312484852,1705919433703,-2154.9690062,0.0002654,2]
[312484886,1705919438325,-10936.78363865,0.0002654,2]
[312484888,1705919438337,-1038.24441124,0.0002654,2]
[312484890,1705919438349,-544.2406621,0.0002654,2]
[312484892,1705919438360,-1658.43701985,0.0002654,2]
[312484895,1705919438371,-608.25,0.0002654,2]
[312484899,1705919438432,-2737.43518512,0.0002654,2]
[312484901,1705919438444,-2796.42315432,0.0002654,2]
[312484957,1705919441442,-2270.65747099,0.0002654,2]
[312485002,1705919447190,-52.73971057,0.0002654,2]
[312485003,1705919447199,-163.42025058,0.00027297,3]
[312485005,1705919447209,-155.0,0.00027397,2]
[312485007,1705919447217,-1641.3586493,0.0002789,3]
[312485048,1705920373502,-250.0,0.00024417,2]
[312485082,1705920633867,-154.84515485,0.00024053,2]
[312485084,1705920633880,-154.84515485,0.00024054,4]
[312485086,1705920633891,-1113.67423739,0.00024055,2]
[312485088,1705920633900,-3611.48,0.00024407,3]
[312485090,1705920633913,-3009.57,0.00024407,3]
[312485092,1705920633922,-300.0,0.00024417,2]
[312485094,1705920633931,-2084.29033128,0.00024417,2]
[312485096,1705920633940,-547.94303379,0.00024417,2]
[312485097,1705920633950,-1826.00758456,0.00024417,2]
[312485099,1705920633959,-1109.51816487,0.00024417,2]
[312485101,1705920633968,-138146.1466807,0.00024417,2]
[312485102,1705920633978,-157.42490565,0.00024417,2]
[312485103,1705920633988,-154.84515485,0.00024417,2]
[312485105,1705920633998,-154.84515485,0.00024417,7]
[312485107,1705920634007,-678.6288756,0.00024439,2]
[312485108,1705920634016,-445.71051319,0.0002444,2]
[312485109,1705920634025,-166.666666,0.00024563,2]
[312485110,1705920634034,-601.1767129,0.00025046,2]
[312485111,1705920634043,-172.888375,0.00025286,2]
[312485112,1705920634053,-620.02785941,0.00026506,2]
[312485113,1705920634062,-199.1966855,0.00026578,2]
[312485114,1705920634072,-1694.34046075,0.00026727,2]
[312485115,1705920634081,-309.61321324,0.00026728,2]
[312485116,1705920634090,-24900.0,0.00026729,2]
[312485117,1705920634099,-153.0,0.00026941,2]
[312485118,1705920634109,-199.1966855,0.00026978,2]
[312485119,1705920634118,-199.1966855,0.00027078,2]
[312485120,1705920634130,-199.1966855,0.00027078,2]
[312485121,1705920634140,-199.1966855,0.00027078,2]
[312485122,1705920634149,-309.6260754,0.00027078,2]
[312485123,1705920634157,-199.1966855,0.00027078,2]
[312485124,1705920634166,-199.1966855,0.00027078,2]
[312485125,1705920634175,-3151.04633684,0.00027339,2]
[312485126,1705920634184,-3042.37260868,0.0002734,2]
[312485127,1705920634193,-210.7718519,0.00027397,2]
[312485128,1705920634202,-199.1966855,0.000274,2]
[312485129,1705920634211,-199.1966855,0.000274,2]
[312485130,1705920634220,-199.1966855,0.000274,2]
[312485131,1705920634229,-198.4156455,0.000274,2]
[312485132,1705920634238,-3420.49198831,0.00027619,2]
[312485133,1705920634247,-1199.39583907,0.00027619,2]
[312485134,1705920634256,-97276.60337385,0.000278,2]
[312485135,1705920634265,-620.00139297,0.00027831,2]
[312485136,1705920634274,-763.99864371,0.0002789,2]
[312485137,1705920634284,-261.58936724,0.0002789,2]
[312485138,1705920634293,-826.08939117,0.0002789,2]
[312485139,1705920634302,-500.0,0.00027898,4]
[312485140,1705920634311,-174.7485272,0.00027898,4]
[312485141,1705920634321,-327.38081339,0.00027898,4]
[312485142,1705920634330,-155.00310006,0.00027898,2]
[312485143,1705920634339,-768.44009764,0.00027898,5]
[312485144,1705920634348,-1252.01139802,0.00027898,2]
[312485145,1705920634357,-155.17257891,0.00027898,2]
[312485146,1705920634366,-200.0,0.00027898,2]
[312485147,1705920634377,-261.8915775,0.00027898,2]
[312485148,1705920634386,-286.470398,0.00027898,2]
[312485149,1705920634396,-286.470398,0.00027898,2]
[312485150,1705920634405,-340.375728,0.00027898,2]
[312485151,1705920634415,-340.375728,0.00027898,2]
[312485152,1705920634425,-10000.0,0.00027898,2]
[312485153,1705920634434,-10000.0,0.00027898,2]
[312485154,1705920634444,-10000.0,0.00027898,2]
[312485155,1705920634454,-10000.0,0.00027898,2]
[312485156,1705920634463,-10000.0,0.00027898,2]
[312485157,1705920634473,-290.75691903,0.00027899,3]
[312485158,1705920634483,-151.0,0.00027899,2]
[312485159,1705920634492,-286.470398,0.00027899,2]
[312485160,1705920634501,-286.470398,0.00027899,2]
[312485161,1705920634511,-286.470398,0.00027899,2]
[312485162,1705920634520,-286.470398,0.00027899,2]
[312485163,1705920634529,-286.470398,0.00027899,2]
[312485164,1705920634539,-286.470398,0.00027899,2]
[312485165,1705920634548,-286.470398,0.00027899,2]
[312485166,1705920634557,-286.470398,0.00027899,2]
[312485167,1705920634567,-286.470398,0.00027899,2]
[312485168,1705920634576,-286.470398,0.00027899,2]
[312485169,1705920634585,-286.470398,0.00027899,2]
[312485170,1705920634594,-286.470398,0.00027899,2]
[312485171,1705920634603,-286.470398,0.00027899,2]
[312485172,1705920634612,-286.470398,0.00027899,2]
[312485173,1705920634623,-286.470398,0.00027899,2]
[312485174,1705920634632,-286.470398,0.00027899,2]
[312485175,1705920634641,-286.470398,0.00027899,2]
[312485176,1705920634650,-286.47040255,0.00027899,2]
[312485177,1705920634660,-340.375728,0.00027899,2]
[312485178,1705920634669,-340.375728,0.00027899,2]
[312485179,1705920634678,-340.375728,0.00027899,2]
[312485180,1705920634687,-340.375728,0.00027899,2]
[312485181,1705920634696,-340.375728,0.00027899,2]
[312485182,1705920634706,-340.375728,0.00027899,2]
[312485183,1705920634715,-340.375728,0.00027899,2]
[312485184,1705920634725,-340.375728,0.00027899,2]
[312485185,1705920634734,-340.375728,0.00027899,2]
[312485186,1705920634743,-340.375728,0.00027899,2]
[312485187,1705920634752,-340.375728,0.00027899,2]
[312485188,1705920634761,-340.375728,0.00027899,2]
[312485189,1705920634770,-340.375728,0.00027899,2]
[312485190,1705920634779,-340.375728,0.00027899,2]
[312485191,1705920634788,-340.375728,0.00027899,2]
[312485192,1705920634797,-340.375728,0.00027899,2]
[312485193,1705920634807,-340.375728,0.00027899,2]
[312485194,1705920634816,-340.37573023,0.00027899,2]
[312485195,1705920634827,-10000.0,0.00027899,2]
[312485196,1705920634836,-10000.0,0.00027899,2]
[312485197,1705920634845,-10000.0,0.00027899,2]
[312485198,1705920634853,-10000.0,0.00027899,2]
[312485199,1705920634862,-10000.0,0.00027899,2]
[312485200,1705920634871,-10000.0,0.00027899,2]
[312485201,1705920634880,-10000.0,0.00027899,2]
[312485202,1705920634890,-10000.0,0.00027899,2]
[312485203,1705920634899,-10000.0,0.00027899,2]
[312485204,1705920634910,-10000.0,0.00027899,2]
[312485205,1705920634919,-10000.0,0.00027899,2]
[312485206,1705920634928,-10000.0,0.00027899,2]
[312485207,1705920634937,-10000.0,0.00027899,2]
[312485208,1705920634946,-10000.0,0.00027899,2]
[312485209,1705920634955,-10000.0,0.00027899,2]
[312485210,1705920634964,-10000.0,0.00027899,2]
[312485211,1705920634973,-10000.0,0.00027899,2]
[312485212,1705920634983,-10000.0,0.00027899,2]